[Event "Early-Titled-Tuesday-Blitz-March-26-2024"]
[Site "Chess.com"]
[Date "2024.03.26"]
[Round "10"]
[White "lagunanivaria"]
[Black "GeorgiosSouleidis"]
[Result "1-0"]
[WhiteElo "2457"]
[BlackElo "2574"]
[TimeControl "180+1"]
[EndTime "9:55:01 PDT"]
[Termination "lagunanivaria won on time"]

1. e3 {[%clk 0:03:00.9]} 1... Nf6 {[%clk 0:02:59.8]} 2. d4 {[%clk 0:02:59.5]}
2... d5 {[%clk 0:02:59.6]} 3. c4 {[%clk 0:03:00.4]} 3... e6 {[%clk 0:02:55.2]}
4. Nc3 {[%clk 0:03:00.9]} 4... a6 {[%clk 0:02:55]} 5. cxd5 {[%clk 0:02:59.5]}
5... exd5 {[%clk 0:02:55.9]} 6. Bd3 {[%clk 0:02:59.4]} 6... Bd6 {[%clk
0:02:55.9]} 7. h3 {[%clk 0:02:58.9]} 7... c6 {[%clk 0:02:56.4]} 8. Nf3 {[%clk
0:02:58.8]} 8... O-O {[%clk 0:02:57]} 9. O-O {[%clk 0:02:59]} 9... Re8 {[%clk
0:02:57.9]} 10. Qc2 {[%clk 0:02:58.4]} 10... Nbd7 {[%clk 0:02:56.5]} 11. Rb1
{[%clk 0:02:58.4]} 11... Nf8 {[%clk 0:02:53.4]} 12. b4 {[%clk 0:02:54.1]} 12...
Qe7 {[%clk 0:02:51.6]} 13. a3 {[%clk 0:02:51.8]} 13... Ne4 {[%clk 0:02:51.6]}
14. Nd2 {[%clk 0:02:44.4]} 14... f5 {[%clk 0:02:48.5]} 15. Nf3 {[%clk
0:02:38.6]} 15... Ng6 {[%clk 0:02:48]} 16. Bd2 {[%clk 0:02:36.8]} 16... Bd7
{[%clk 0:02:46.6]} 17. Rfe1 {[%clk 0:02:36.8]} 17... Kh8 {[%clk 0:02:47.1]} 18.
Ne2 {[%clk 0:02:36.1]} 18... Rf8 {[%clk 0:02:46.8]} 19. g3 {[%clk 0:02:34]}
19... Rac8 {[%clk 0:02:44.6]} 20. Nf4 {[%clk 0:02:34.1]} 20... Nxf4 {[%clk
0:02:41.7]} 21. gxf4 {[%clk 0:02:35]} 21... Rg8 {[%clk 0:02:29]} 22. Kf1 {[%clk
0:02:29.6]} 22... Be6 {[%clk 0:02:28.2]} 23. Ke2 {[%clk 0:02:08.9]} 23... h6
{[%clk 0:02:28.1]} 24. Rg1 {[%clk 0:02:06.5]} 24... Bf7 {[%clk 0:02:27.8]} 25.
Ne5 {[%clk 0:01:51.7]} 25... Bh5+ {[%clk 0:02:27.6]} 26. f3 {[%clk 0:01:51.8]}
26... Qh4 {[%clk 0:02:26.9]} 27. Bxe4 {[%clk 0:01:12.8]} 27... fxe4 {[%clk
0:02:25.7]} 28. Ng6+ {[%clk 0:01:11.8]} 28... Bxg6 {[%clk 0:02:23.7]} 29. Rxg6
{[%clk 0:01:12.7]} 29... exf3+ {[%clk 0:02:13.6]} 30. Kxf3 {[%clk 0:01:10.6]}
30... Qxh3+ {[%clk 0:02:05.2]} 31. Rg3 {[%clk 0:01:09.6]} 31... Qh5+ {[%clk
0:02:04.3]} 32. Kf2 {[%clk 0:01:09.8]} 32... Rcf8 {[%clk 0:01:53.5]} 33. Qg6
{[%clk 0:01:08.5]} 33... Qh2+ {[%clk 0:01:40.2]} 34. Rg2 {[%clk 0:01:07.6]}
34... Qh4+ {[%clk 0:01:40.4]} 35. Ke2 {[%clk 0:01:04.8]} 35... Rf6 {[%clk
0:01:38.8]} 36. Qg4 {[%clk 0:00:47.4]} 36... Qxg4+ {[%clk 0:01:37]} 37. Rxg4
{[%clk 0:00:48.3]} 37... Re8 {[%clk 0:01:36.2]} 38. Kd3 {[%clk 0:00:44.7]} 38...
Rf7 {[%clk 0:01:31.5]} 39. Rbg1 {[%clk 0:00:44]} 39... Be7 {[%clk 0:01:30.7]}
40. Be1 {[%clk 0:00:38.8]} 40... Bf6 {[%clk 0:01:29.6]} 41. Bh4 {[%clk
0:00:37.8]} 41... Bxh4 {[%clk 0:01:23.1]} 42. Rxh4 {[%clk 0:00:38.7]} 42... Rfe7
{[%clk 0:01:22.8]} 43. Rg3 {[%clk 0:00:38.5]} 43... a5 {[%clk 0:01:19.5]} 44.
bxa5 {[%clk 0:00:24.5]} 44... Ra8 {[%clk 0:01:18.9]} 45. f5 {[%clk 0:00:24.7]}
45... Rf7 {[%clk 0:01:15.1]} 46. Rf4 {[%clk 0:00:14.6]} 46... Rxa5 {[%clk
0:01:14.8]} 47. f6 {[%clk 0:00:14.9]} 47... Rxa3+ {[%clk 0:01:13.8]} 48. Ke2
{[%clk 0:00:14.6]} 48... Rxf6 {[%clk 0:01:09.1]} 49. Rxf6 {[%clk 0:00:14.2]}
49... gxf6 {[%clk 0:01:10]} 50. Rg6 {[%clk 0:00:14.8]} 50... Ra8 {[%clk
0:00:49.4]} 51. Rxf6 {[%clk 0:00:13.6]} 51... Kg7 {[%clk 0:00:50]} 52. Rd6
{[%clk 0:00:13.3]} 52... Rf8 {[%clk 0:00:50.1]} 53. Rd7+ {[%clk 0:00:11.9]}
53... Rf7 {[%clk 0:00:50.3]} 54. Rd8 {[%clk 0:00:12.2]} 54... Kg6 {[%clk
0:00:47.6]} 55. Rg8+ {[%clk 0:00:11.4]} 55... Rg7 {[%clk 0:00:47.5]} 56. Rh8
{[%clk 0:00:11.6]} 56... Rf7 {[%clk 0:00:47.4]} 57. Rg8+ {[%clk 0:00:11.3]}
57... Kf5 {[%clk 0:00:47.9]} 58. Kf3 {[%clk 0:00:10.7]} 58... Rh7 {[%clk
0:00:39.9]} 59. Kg3 {[%clk 0:00:08.7]} 59... h5 {[%clk 0:00:38.3]} 60. Re8
{[%clk 0:00:06.5]} 60... h4+ {[%clk 0:00:38.1]} 61. Kh3 {[%clk 0:00:06.6]} 61...
Rh6 {[%clk 0:00:36]} 62. Re5+ {[%clk 0:00:06.5]} 62... Kf6 {[%clk 0:00:35.2]}
63. Re8 {[%clk 0:00:06.8]} 63... b5 {[%clk 0:00:35.2]} 64. Rc8 {[%clk
0:00:03.9]} 64... Kf5 {[%clk 0:00:34.8]} 65. Re8 {[%clk 0:00:03.8]} 65... b4
{[%clk 0:00:34.7]} 66. Re5+ {[%clk 0:00:03.8]} 66... Kf6 {[%clk 0:00:35.2]} 67.
Re8 {[%clk 0:00:04.2]} 67... Rh7 {[%clk 0:00:18.9]} 68. Rb8 {[%clk 0:00:04.5]}
68... Kf5 {[%clk 0:00:19.3]} 69. Rxb4 {[%clk 0:00:04.8]} 69... Ke4 {[%clk
0:00:19.9]} 70. Rb3 {[%clk 0:00:05.3]} 70... Kf3 {[%clk 0:00:15.3]} 71. Rc3
{[%clk 0:00:05.3]} 71... Rh6 {[%clk 0:00:15]} 72. Rd3 {[%clk 0:00:04.8]} 72...
Re6 {[%clk 0:00:07.7]} 73. Kxh4 {[%clk 0:00:03.9]} 73... Rxe3 {[%clk 0:00:08.1]}
74. Rd1 {[%clk 0:00:04.5]} 74... Re4+ {[%clk 0:00:05.6]} 75. Kg5 {[%clk
0:00:04.7]} 75... Ke3 {[%clk 0:00:06.5]} 76. Rc1 {[%clk 0:00:04]} 76... Re6
{[%clk 0:00:06.6]} 77. Kf5 {[%clk 0:00:04.1]} 77... Rh6 {[%clk 0:00:05.3]} 78.
Rd1 {[%clk 0:00:04.5]} 78... Ke2 {[%clk 0:00:04.1]} 79. Rc1 {[%clk 0:00:04]}
79... Kd2 {[%clk 0:00:03.9]} 80. Ra1 {[%clk 0:00:04.1]} 80... Kc3 {[%clk
0:00:04]} 81. Rd1 {[%clk 0:00:03.8]} 81... Kb2 {[%clk 0:00:02]} 82. Ke5 {[%clk
0:00:04]} 1-0

[Event "Early-Titled-Tuesday-Blitz-March-26-2024"]
[Site "Chess.com"]
[Date "2024.03.26"]
[Round "10"]
[White "Statham_01"]
[Black "PavelShkapenko"]
[Result "1/2-1/2"]
[WhiteElo "2594"]
[BlackElo "2754"]
[TimeControl "180+1"]
[EndTime "9:55:06 PDT"]
[Termination "Game drawn - insufficient material"]

1. e4 {[%clk 0:03:00.9]} 1... e5 {[%clk 0:02:59.9]} 2. Nf3 {[%clk 0:03:00.6]}
2... Nc6 {[%clk 0:03:00.5]} 3. Bc4 {[%clk 0:03:00.1]} 3... d6 {[%clk 0:03:00.7]}
4. d4 {[%clk 0:02:57.9]} 4... Nf6 {[%clk 0:03:00.6]} 5. Ng5 {[%clk 0:02:45.2]}
5... d5 {[%clk 0:03:00.3]} 6. exd5 {[%clk 0:02:46.1]} 6... Nxd4 {[%clk
0:03:00.9]} 7. c3 {[%clk 0:02:38.8]} 7... Nf5 {[%clk 0:02:26.8]} 8. O-O {[%clk
0:02:31.6]} 8... h6 {[%clk 0:02:10.7]} 9. Nf3 {[%clk 0:02:28.8]} 9... e4 {[%clk
0:02:00.6]} 10. Nd4 {[%clk 0:02:14]} 10... Bd6 {[%clk 0:01:53.5]} 11. Bb5+
{[%clk 0:02:06.8]} 11... Bd7 {[%clk 0:01:45.2]} 12. Bxd7+ {[%clk 0:01:44.5]}
12... Qxd7 {[%clk 0:01:45.1]} 13. Nxf5 {[%clk 0:01:38.4]} 13... Qxf5 {[%clk
0:01:42.9]} 14. Nd2 {[%clk 0:01:19]} 14... O-O-O {[%clk 0:01:30.9]} 15. c4
{[%clk 0:01:09.4]} 15... Qe5 {[%clk 0:01:19.9]} 16. f4 {[%clk 0:00:57.8]} 16...
Qd4+ {[%clk 0:01:09.8]} 17. Kh1 {[%clk 0:00:58]} 17... Rhe8 {[%clk 0:01:10.4]}
18. Qe2 {[%clk 0:00:40.1]} 18... e3 {[%clk 0:01:08.4]} 19. Nf3 {[%clk 0:00:36]}
19... Qxf4 {[%clk 0:00:59.3]} 20. b4 {[%clk 0:00:28.4]} 20... Bxb4 {[%clk
0:00:50]} 21. Rb1 {[%clk 0:00:28.3]} 21... Bd6 {[%clk 0:00:48.5]} 22. Rb3 {[%clk
0:00:23.6]} 22... Ng4 {[%clk 0:00:48]} 23. c5 {[%clk 0:00:14]} 23... Bxc5 {[%clk
0:00:39.2]} 24. h3 {[%clk 0:00:14.4]} 24... Nf2+ {[%clk 0:00:34.8]} 25. Qxf2
{[%clk 0:00:09.9]} 25... exf2 {[%clk 0:00:34.9]} 26. Bxf4 {[%clk 0:00:10.8]}
26... Rxd5 {[%clk 0:00:32.6]} 27. Bg3 {[%clk 0:00:09.5]} 27... Re2 {[%clk
0:00:31.4]} 28. Rc3 {[%clk 0:00:05.9]} 28... Bb6 {[%clk 0:00:30.8]} 29. Kh2
{[%clk 0:00:04.8]} 29... Rxa2 {[%clk 0:00:30.3]} 30. Nh4 {[%clk 0:00:03.2]}
30... g6 {[%clk 0:00:16.3]} 31. Rf3 {[%clk 0:00:03.5]} 31... Rd7 {[%clk
0:00:14.4]} 32. Bxf2 {[%clk 0:00:03.8]} 32... Bxf2 {[%clk 0:00:14.4]} 33. R3xf2
{[%clk 0:00:04.7]} 33... Rxf2 {[%clk 0:00:14.5]} 34. Rxf2 {[%clk 0:00:05.6]}
34... b5 {[%clk 0:00:14.7]} 35. Nf3 {[%clk 0:00:06.1]} 35... Rd5 {[%clk
0:00:13.3]} 36. Nd2 {[%clk 0:00:05.5]} 36... f5 {[%clk 0:00:13.5]} 37. Nf3
{[%clk 0:00:04.4]} 37... Kb7 {[%clk 0:00:13.6]} 38. Nh4 {[%clk 0:00:05]} 38...
Rd6 {[%clk 0:00:13.1]} 39. Nf3 {[%clk 0:00:05.2]} 39... a5 {[%clk 0:00:13.1]}
40. Ne5 {[%clk 0:00:05.7]} 40... a4 {[%clk 0:00:12.7]} 41. Rb2 {[%clk
0:00:04.6]} 41... c6 {[%clk 0:00:10]} 42. Kg3 {[%clk 0:00:03.7]} 42... g5 {[%clk
0:00:10.2]} 43. h4 {[%clk 0:00:03.6]} 43... Rd5 {[%clk 0:00:10.4]} 44. Nf7
{[%clk 0:00:02.9]} 44... gxh4+ {[%clk 0:00:09.8]} 45. Kf4 {[%clk 0:00:03.6]}
45... Kb6 {[%clk 0:00:09.1]} 46. Nxh6 {[%clk 0:00:03.6]} 46... a3 {[%clk
0:00:09.3]} 47. Rb3 {[%clk 0:00:03.2]} 47... a2 {[%clk 0:00:09.1]} 48. Ra3
{[%clk 0:00:03.7]} 48... Rd2 {[%clk 0:00:09.4]} 49. Nxf5 {[%clk 0:00:04]} 49...
Rxg2 {[%clk 0:00:09.2]} 50. Nxh4 {[%clk 0:00:04.4]} 50... Rb2 {[%clk 0:00:08.8]}
51. Nf3 {[%clk 0:00:04.3]} 51... b4 {[%clk 0:00:09.3]} 52. Ra8 {[%clk
0:00:04.5]} 52... b3 {[%clk 0:00:09.5]} 53. Nd4 {[%clk 0:00:04.9]} 53... c5
{[%clk 0:00:08.5]} 54. Nxb3 {[%clk 0:00:04.3]} 54... Rxb3 {[%clk 0:00:08.6]} 55.
Rxa2 {[%clk 0:00:04.4]} 55... Rd3 {[%clk 0:00:08.2]} 56. Ke4 {[%clk 0:00:04.9]}
56... Rd8 {[%clk 0:00:08.1]} 57. Ra1 {[%clk 0:00:05.4]} 57... Kb5 {[%clk
0:00:08.2]} 58. Rb1+ {[%clk 0:00:06]} 58... Kc6 {[%clk 0:00:08.3]} 59. Rc1
{[%clk 0:00:05.9]} 59... Rd4+ {[%clk 0:00:08.1]} 60. Ke3 {[%clk 0:00:05.7]}
60... Kd5 {[%clk 0:00:08.3]} 61. Rb1 {[%clk 0:00:05.2]} 61... Kc4 {[%clk
0:00:07.8]} 62. Rc1+ {[%clk 0:00:05]} 62... Kb5 {[%clk 0:00:08.1]} 63. Rb1+
{[%clk 0:00:05.6]} 63... Rb4 {[%clk 0:00:08.3]} 64. Rc1 {[%clk 0:00:05.9]} 64...
Rd4 {[%clk 0:00:07.8]} 65. Rb1+ {[%clk 0:00:05.8]} 65... Kc6 {[%clk 0:00:08.4]}
66. Rc1 {[%clk 0:00:04.8]} 66... Rd8 {[%clk 0:00:08.9]} 67. Rb1 {[%clk
0:00:05.2]} 67... Rd7 {[%clk 0:00:08.8]} 68. Rc1 {[%clk 0:00:05.4]} 68... Kb5
{[%clk 0:00:09.2]} 69. Rb1+ {[%clk 0:00:05.7]} 69... Ka4 {[%clk 0:00:09.1]} 70.
Rc1 {[%clk 0:00:05.1]} 70... Rd5 {[%clk 0:00:09.3]} 71. Ke4 {[%clk 0:00:04.7]}
71... Rh5 {[%clk 0:00:09.4]} 72. Kd3 {[%clk 0:00:03]} 72... Kb4 {[%clk
0:00:09.3]} 73. Rb1+ {[%clk 0:00:03.2]} 73... Ka5 {[%clk 0:00:09.6]} 74. Kc4
{[%clk 0:00:03.3]} 74... Ka6 {[%clk 0:00:09.9]} 75. Rb2 {[%clk 0:00:01.6]} 75...
Rg5 {[%clk 0:00:10.1]} 76. Rb1 {[%clk 0:00:02.2]} 76... Rf5 {[%clk 0:00:10.4]}
77. Rb3 {[%clk 0:00:02.8]} 77... Ka7 {[%clk 0:00:10.4]} 78. Rb1 {[%clk
0:00:03.4]} 78... Re5 {[%clk 0:00:10.4]} 79. Rb5 {[%clk 0:00:03.6]} 79... Ka6
{[%clk 0:00:10.7]} 80. Rxc5 {[%clk 0:00:03.9]} 80... Rxc5+ {[%clk 0:00:11.4]}
81. Kxc5 {[%clk 0:00:04.3]} 1/2-1/2

[Event "Early-Titled-Tuesday-Blitz-March-26-2024"]
[Site "Chess.com"]
[Date "2024.03.26"]
[Round "11"]
[White "Matibar"]
[Black "Barmen_EV"]
[Result "1-0"]
[WhiteElo "2720"]
[BlackElo "2578"]
[TimeControl "180+1"]
[EndTime "10:00:10 PDT"]
[Termination "Matibar won by resignation"]

1. Nc3 {[%clk 0:03:00.9]} 1... f5 {[%clk 0:02:58.3]} 2. d3 {[%clk 0:02:57.6]}
2... Nf6 {[%clk 0:02:58.2]} 3. Bg5 {[%clk 0:02:55.3]} 3... e6 {[%clk 0:02:57.1]}
4. e4 {[%clk 0:02:54.8]} 4... fxe4 {[%clk 0:02:56.5]} 5. dxe4 {[%clk 0:02:54.8]}
5... Be7 {[%clk 0:02:55.1]} 6. Bd3 {[%clk 0:02:52.9]} 6... d6 {[%clk 0:02:51.4]}
7. e5 {[%clk 0:02:44.8]} 7... dxe5 {[%clk 0:02:48.8]} 8. Qe2 {[%clk 0:02:44.8]}
8... Nc6 {[%clk 0:02:46.2]} 9. O-O-O {[%clk 0:02:44.3]} 9... Nd4 {[%clk
0:02:46.5]} 10. Qxe5 {[%clk 0:02:39.6]} 10... c5 {[%clk 0:02:42.7]} 11. Nf3
{[%clk 0:02:36.8]} 11... Qd6 {[%clk 0:02:36.3]} 12. Qxd6 {[%clk 0:02:27.7]}
12... Bxd6 {[%clk 0:02:37.2]} 13. Nxd4 {[%clk 0:02:28]} 13... cxd4 {[%clk
0:02:38.1]} 14. Nb5 {[%clk 0:02:28.3]} 14... Bb8 {[%clk 0:02:27.7]} 15. Nxd4
{[%clk 0:02:25.1]} 15... O-O {[%clk 0:02:28.3]} 16. f3 {[%clk 0:02:23.9]} 16...
h6 {[%clk 0:02:21.2]} 17. Bd2 {[%clk 0:02:22.5]} 17... Nd5 {[%clk 0:02:16.6]}
18. Kb1 {[%clk 0:02:20.4]} 18... e5 {[%clk 0:02:16.7]} 19. Nb3 {[%clk
0:02:13.9]} 19... Kh8 {[%clk 0:02:13.6]} 20. Rhe1 {[%clk 0:02:11.6]} 20... b6
{[%clk 0:02:13.7]} 21. Be4 {[%clk 0:02:10.9]} 21... Bb7 {[%clk 0:02:14.3]} 22.
c4 {[%clk 0:02:11]} 1-0

[Event "Early-Titled-Tuesday-Blitz-March-26-2024"]
[Site "Chess.com"]
[Date "2024.03.26"]
[Round "11"]
[White "PapaieDudu"]
[Black "Navyblue1"]
[Result "1-0"]
[WhiteElo "2431"]
[BlackElo "2242"]
[TimeControl "180+1"]
[EndTime "10:00:58 PDT"]
[Termination "PapaieDudu won by resignation"]

1. Nf3 {[%clk 0:03:00.9]} 1... c5 {[%clk 0:02:57.3]} 2. e4 {[%clk 0:03:00.5]}
2... d6 {[%clk 0:02:56]} 3. d4 {[%clk 0:03:00.8]} 3... cxd4 {[%clk 0:02:56.5]}
4. Nxd4 {[%clk 0:03:01.4]} 4... Nf6 {[%clk 0:02:56.2]} 5. Nc3 {[%clk 0:03:01.8]}
5... a6 {[%clk 0:02:54.2]} 6. f3 {[%clk 0:03:01.6]} 6... e5 {[%clk 0:02:52.9]}
7. Nb3 {[%clk 0:03:01.4]} 7... Be7 {[%clk 0:02:51.2]} 8. Be3 {[%clk 0:03:02]}
8... h5 {[%clk 0:02:48.9]} 9. Qd2 {[%clk 0:03:01.6]} 9... Be6 {[%clk 0:02:47.7]}
10. O-O-O {[%clk 0:03:02.2]} 10... Nbd7 {[%clk 0:02:44.7]} 11. Nd5 {[%clk
0:03:01.2]} 11... Bxd5 {[%clk 0:02:37.8]} 12. exd5 {[%clk 0:03:01.7]} 12... Rc8
{[%clk 0:02:34.7]} 13. Kb1 {[%clk 0:03:00.4]} 13... Nb6 {[%clk 0:02:34.6]} 14.
c4 {[%clk 0:02:49.1]} 14... Nxc4 {[%clk 0:01:51]} 15. Bxc4 {[%clk 0:02:48.4]}
15... Rxc4 {[%clk 0:01:51]} 16. Na5 {[%clk 0:02:48.3]} 16... Rc8 {[%clk
0:01:46.8]} 17. Qb4 {[%clk 0:02:44.6]} 17... b5 {[%clk 0:01:24.9]} 18. g4 {[%clk
0:02:35]} 18... hxg4 {[%clk 0:01:17]} 19. fxg4 {[%clk 0:02:35.2]} 19... Nxg4
{[%clk 0:01:10.5]} 20. Qxg4 {[%clk 0:02:26.9]} 20... Qxa5 {[%clk 0:01:07.5]} 21.
Qxc8+ {[%clk 0:02:27.1]} 1-0

[Event "Early-Titled-Tuesday-Blitz-March-26-2024"]
[Site "Chess.com"]
[Date "2024.03.26"]
[Round "11"]
[White "xakevicius91"]
[Black "ChessQueen"]
[Result "0-1"]
[WhiteElo "2523"]
[BlackElo "2717"]
[TimeControl "180+1"]
[EndTime "10:01:32 PDT"]
[Termination "ChessQueen won by resignation"]

1. e4 {[%clk 0:03:00.9]} 1... c6 {[%clk 0:02:57.8]} 2. d4 {[%clk 0:03:00.9]}
2... d5 {[%clk 0:02:58.4]} 3. e5 {[%clk 0:03:01.5]} 3... c5 {[%clk 0:02:58.8]}
4. Nf3 {[%clk 0:03:02.1]} 4... Nc6 {[%clk 0:02:58.5]} 5. dxc5 {[%clk 0:03:02]}
5... e6 {[%clk 0:02:59]} 6. Be3 {[%clk 0:02:55.9]} 6... Nge7 {[%clk 0:02:58.8]}
7. Bb5 {[%clk 0:02:55.2]} 7... Nf5 {[%clk 0:02:56.4]} 8. b4 {[%clk 0:02:50.5]}
8... Bd7 {[%clk 0:02:55]} 9. Bxc6 {[%clk 0:02:50.1]} 9... Bxc6 {[%clk
0:02:55.1]} 10. Bd4 {[%clk 0:02:47.3]} 10... b6 {[%clk 0:02:54.2]} 11. cxb6
{[%clk 0:02:46.6]} 11... Bxb4+ {[%clk 0:02:49.2]} 12. c3 {[%clk 0:02:47.1]}
12... Ba5 {[%clk 0:02:44.3]} 13. bxa7 {[%clk 0:02:45.3]} 13... Nxd4 {[%clk
0:02:43.4]} 14. Nxd4 {[%clk 0:02:40]} 14... Bd7 {[%clk 0:02:42.9]} 15. O-O
{[%clk 0:02:40.4]} 15... O-O {[%clk 0:02:39.3]} 16. Nb3 {[%clk 0:02:28.2]} 16...
Bb6 {[%clk 0:02:38.1]} 17. N1d2 {[%clk 0:02:28.8]} 17... Rxa7 {[%clk 0:02:36.8]}
18. c4 {[%clk 0:02:29.2]} 18... Qa8 {[%clk 0:02:30.4]} 19. c5 {[%clk 0:02:23.6]}
19... Bc7 {[%clk 0:02:28]} 20. Nf3 {[%clk 0:02:16.5]} 20... Rxa2 {[%clk
0:02:27.7]} 21. Rxa2 {[%clk 0:02:15]} 21... Qxa2 {[%clk 0:02:28.6]} 22. Nbd4
{[%clk 0:02:10.7]} 22... Rb8 {[%clk 0:02:15.8]} 23. c6 {[%clk 0:01:57.3]} 23...
Bc8 {[%clk 0:02:09.2]} 24. Qd3 {[%clk 0:01:55.6]} 24... Ba6 {[%clk 0:02:05.2]}
25. Qc2 {[%clk 0:01:29]} 25... Qxc2 {[%clk 0:02:03.2]} 26. Nxc2 {[%clk
0:01:29.9]} 26... Bxf1 {[%clk 0:02:02.7]} 27. Kxf1 {[%clk 0:01:30.8]} 27... f6
{[%clk 0:01:57.9]} 28. Ncd4 {[%clk 0:01:29.2]} 28... Kf7 {[%clk 0:01:57.8]} 29.
exf6 {[%clk 0:01:26.6]} 29... gxf6 {[%clk 0:01:58.7]} 30. Ke2 {[%clk 0:01:26.2]}
30... Rb6 {[%clk 0:01:54.6]} 31. Kd3 {[%clk 0:01:25.1]} 31... e5 {[%clk
0:01:54.8]} 0-1

[Event "Early-Titled-Tuesday-Blitz-March-26-2024"]
[Site "Chess.com"]
[Date "2024.03.26"]
[Round "11"]
[White "ChristopherYoo"]
[Black "Shahdad2007"]
[Result "1-0"]
[WhiteElo "2945"]
[BlackElo "2631"]
[TimeControl "180+1"]
[EndTime "10:01:34 PDT"]
[Termination "ChristopherYoo won by resignation"]

1. g3 {[%clk 0:03:00.9]} 1... g6 {[%clk 0:02:58.7]} 2. Bg2 {[%clk 0:02:59.9]}
2... Bg7 {[%clk 0:02:59.1]} 3. c4 {[%clk 0:02:59.6]} 3... Nf6 {[%clk 0:02:58.6]}
4. Nc3 {[%clk 0:02:59.8]} 4... O-O {[%clk 0:02:58.2]} 5. Nf3 {[%clk 0:03:00.5]}
5... d5 {[%clk 0:02:57]} 6. cxd5 {[%clk 0:03:00.2]} 6... Nxd5 {[%clk 0:02:57.1]}
7. h4 {[%clk 0:03:00.9]} 7... h6 {[%clk 0:02:46.7]} 8. d4 {[%clk 0:02:56]} 8...
c5 {[%clk 0:02:42.7]} 9. h5 {[%clk 0:02:53.4]} 9... cxd4 {[%clk 0:02:29]} 10.
Nxd5 {[%clk 0:02:50.8]} 10... Qxd5 {[%clk 0:02:27.7]} 11. hxg6 {[%clk
0:02:51.4]} 11... fxg6 {[%clk 0:02:26.3]} 12. Bxh6 {[%clk 0:02:50.9]} 12... Nc6
{[%clk 0:02:21.5]} 13. Qd2 {[%clk 0:02:48.7]} 13... Qa5 {[%clk 0:01:58.1]} 14.
Qxa5 {[%clk 0:02:45.8]} 14... Nxa5 {[%clk 0:01:59]} 15. Bxg7 {[%clk 0:02:46]}
15... Kxg7 {[%clk 0:01:54]} 16. Nxd4 {[%clk 0:02:44]} 16... Nc4 {[%clk
0:01:54.5]} 17. b3 {[%clk 0:02:42.5]} 17... Nd6 {[%clk 0:01:54.5]} 18. Rc1
{[%clk 0:02:40.7]} 18... Rf7 {[%clk 0:01:39.2]} 19. Nf3 {[%clk 0:02:36.5]} 19...
e6 {[%clk 0:01:24.5]} 20. Ng5 {[%clk 0:02:35.5]} 20... Re7 {[%clk 0:01:24.4]}
21. Rh7+ {[%clk 0:02:34.8]} 21... Kf6 {[%clk 0:01:24.5]} 22. Rxe7 {[%clk
0:02:35.4]} 22... Kxe7 {[%clk 0:01:24.6]} 23. Rc7+ {[%clk 0:02:35.8]} 23... Bd7
{[%clk 0:01:23.4]} 24. Bxb7 {[%clk 0:02:35.6]} 24... Nxb7 {[%clk 0:01:19.2]} 25.
Rxb7 {[%clk 0:02:36.5]} 25... a5 {[%clk 0:01:19.7]} 26. Nf3 {[%clk 0:02:35.3]}
26... a4 {[%clk 0:01:19.1]} 27. Ne5 {[%clk 0:02:35.4]} 27... axb3 {[%clk
0:01:17.3]} 28. axb3 {[%clk 0:02:35]} 28... Kd6 {[%clk 0:01:12]} 29. Nxd7 {[%clk
0:02:33.2]} 29... Kc6 {[%clk 0:01:12]} 30. Nc5 {[%clk 0:02:28.4]} 30... Kxc5
{[%clk 0:01:10.8]} 31. Rg7 {[%clk 0:02:29.1]} 31... Kb4 {[%clk 0:01:05.5]} 32.
Rxg6 {[%clk 0:02:27.2]} 32... Kc3 {[%clk 0:01:05.5]} 33. Kf1 {[%clk 0:02:27.3]}
33... Kxb3 {[%clk 0:01:03.2]} 34. Rxe6 {[%clk 0:02:26.7]} 1-0

[Event "Early-Titled-Tuesday-Blitz-March-26-2024"]
[Site "Chess.com"]
[Date "2024.03.26"]
[Round "11"]
[White "Brahianzevich"]
[Black "karinachess1"]
[Result "1-0"]
[WhiteElo "2476"]
[BlackElo "2596"]
[TimeControl "180+1"]
[EndTime "10:01:56 PDT"]
[Termination "Brahianzevich won by resignation"]

1. e4 {[%clk 0:03:00.4]} 1... e5 {[%clk 0:03:00.2]} 2. Nf3 {[%clk 0:03:00.4]}
2... Nc6 {[%clk 0:03:01]} 3. Bb5 {[%clk 0:03:00.1]} 3... Nge7 {[%clk 0:03:01.2]}
4. c3 {[%clk 0:02:59.7]} 4... a6 {[%clk 0:02:58]} 5. Ba4 {[%clk 0:02:59.9]} 5...
b5 {[%clk 0:02:56.6]} 6. Bc2 {[%clk 0:02:53.4]} 6... d5 {[%clk 0:02:56.3]} 7. d4
{[%clk 0:02:47.6]} 7... exd4 {[%clk 0:02:53.3]} 8. Nxd4 {[%clk 0:02:45.4]} 8...
Bb7 {[%clk 0:02:34.2]} 9. Nxc6 {[%clk 0:02:31.4]} 9... Bxc6 {[%clk 0:02:26]} 10.
exd5 {[%clk 0:02:30.5]} 10... Qxd5 {[%clk 0:02:24]} 11. Qxd5 {[%clk 0:02:26.2]}
11... Bxd5 {[%clk 0:02:24.9]} 12. O-O {[%clk 0:02:25.9]} 12... Ng6 {[%clk
0:02:18.4]} 13. Re1+ {[%clk 0:02:20.6]} 13... Kd7 {[%clk 0:02:17.9]} 14. a4
{[%clk 0:02:20.1]} 14... Bc5 {[%clk 0:02:14.4]} 15. Rd1 {[%clk 0:02:09.7]} 15...
Kc6 {[%clk 0:02:13]} 16. Nd2 {[%clk 0:01:37]} 16... Rhe8 {[%clk 0:02:09.6]} 17.
axb5+ {[%clk 0:01:26.8]} 17... axb5 {[%clk 0:02:09.8]} 18. Rxa8 {[%clk 0:01:27]}
18... Rxa8 {[%clk 0:02:10.7]} 19. Nb3 {[%clk 0:01:24.9]} 19... Bb6 {[%clk
0:01:55.1]} 20. Nd4+ {[%clk 0:01:25.1]} 20... Bxd4 {[%clk 0:01:55]} 21. Rxd4
{[%clk 0:01:24.8]} 21... Ra1 {[%clk 0:01:44.6]} 22. Rd1 {[%clk 0:01:24.6]} 22...
Nh4 {[%clk 0:01:44.5]} 23. f3 {[%clk 0:01:24]} 23... h6 {[%clk 0:01:34.6]} 24.
Kf2 {[%clk 0:01:22.1]} 24... Nf5 {[%clk 0:01:30.1]} 25. Bxf5 {[%clk 0:01:20.2]}
25... Bb3 {[%clk 0:01:30.3]} 26. Be4+ {[%clk 0:01:17.5]} 26... Kb6 {[%clk
0:01:27.8]} 27. Be3+ {[%clk 0:01:17.4]} 1-0